Cogmind - Beta 15 --- EXPLORER MODE // 2025.09.02 @ 03:24:15 Player: swetpototo Result: Destroyed by G-73 Enforcer with Phase Gun Performance ------------- Evolutions (8) 4000 Regions Visited (11) 2200 Robots Destroyed (154) 770 Value Destroyed (8598) 8598 Prototype IDs (14) 280 Alien Tech Used (0) 0 Bonus (1332) 1332 TOTAL SCORE: 17180 Bonus ------- Follower Combat Kills 32 Registered with UFD 300 Met Optimus in HQ 500 Scanned by Researcher 500 Cogmind --------- Core Integrity 0/1450 Matter 288/300 Energy 304/400 System Corruption 34% Temperature Cool (9) Movement Walking (120) Location -2/Testing Parts ------- > --- POWER (2) -------- Micro Antimatter Reactor Quantum Reactor > --- PROPULSION (6) --- Myomer Leg Advanced Myomer Leg Centrium Leg Centrium Leg High-density Centrium Leg > --- UTILITY (14) ----- Advanced Heat Sink 2N-1CE's Frost Array Large Storage Unit Seismic Detector Core Analyzer Improved Transmission Jammer Experimental Weapon Shielding Graphene Brace Advanced Point Defense System > --- WEAPON (2) ------- Companion Sword > --- INVENTORY (15) --- Light Quantum Reactor Light Quantum Reactor Thunder Leg Myomer Leg Myomer Leg Myomer Leg Myomer Leg Biometal Leg Centrium Leg Wheel Medium Storage Unit Improved Transmission Jammer Overtuned Coil Gun Improved Proton Missile Launcher Peak State ------------ > --- POWER ------------ Micro Antimatter Reactor Light Quantum Reactor > --- PROPULSION ------- Myomer Leg Myomer Leg Advanced Myomer Leg Centrium Leg Centrium Leg High-density Centrium Leg > --- UTILITY ---------- Advanced Heat Sink 2N-1CE's Frost Array Large Storage Unit Medium Matter Pod Seismic Detector Core Analyzer Precision Matter Filter Improved Transmission Jammer Improved Transmission Jammer Experimental Weapon Shielding Improved Medium Armor Plating Graphene Brace Advanced Point Defense System > --- WEAPON ----------- Companion Sword > --- INVENTORY -------- Quantum Reactor Light Quantum Reactor Light Quantum Reactor Thunder Leg Myomer Leg Myomer Leg Biometal Leg Centrium Leg Wheel Medium Storage Unit Improved Transmission Jammer Overtuned Coil Gun Improved Proton Missile Launcher [Rating: 147] Favorites ----------- Power Subdweller Power Source Engine Subdweller Power Source Power Core Micro Nuclear Core Reactor Light Antimatter Reactor Propulsion Spiked Treads Treads Spiked Treads Leg Myomer Leg Wheel Overtuned Huge Scrapsphere Utility Improved Melee Analysis Suite Device Microactuators Storage Light Humpback Processor Improved Melee Analysis Suite Hackware Hacking Suite Protection Experimental Weapon Shielding Weapon Companion Sword Energy Cannon Subdweller Beam Cannon Ballistic Gun Assault Rifle Special Weapon CPS Tube Slashing Weapon Companion Sword Build | -11 -10 -10 -7 -7 -5 -4 -4 -4 -3 -2 -2 ------- Run | Yrd Mat Sub Rec Scr Fac Fac Upp Upp Res Res Tes Slots Evolved 17 | . 1 . . . 10 2 . . 2 2 . Power 1 | . 1 . . . . . . . . . . Propulsion 4 | . . . . . 2 . . . . 2 . Utility 12 | . . . . . 8 2 . . 2 . . Weapon . | . . . . . . . . . . . . Parts Attached 172 | . . 15 2 9 26 6 3 . 43 57 11 Power 37 | . . 5 1 . 3 2 . . 11 13 2 Engine 6 | . . 5 . . 1 . . . . . . Core 3 | . . . 1 . 1 . . . 1 . . Reactor 28 | . . . . . 1 2 . . 10 13 2 Propulsion 54 | . . 3 . 7 5 2 . . 13 20 4 Treads 4 | . . 2 . 2 . . . . . . . Leg 46 | . . . . 3 5 2 . . 13 19 4 Wheel 4 | . . 1 . 2 . . . . . 1 . Hover . | . . . . . . . . . . . . Flight . | . . . . . . . . . . . . Utility 71 | . . 1 . . 17 2 3 . 19 24 5 Device 37 | . . . . . 7 1 2 . 9 15 3 Storage 5 | . . 1 . . 1 . . . . 3 . Processor 15 | . . . . . 4 . 1 . 8 2 . Hackware 3 | . . . . . 3 . . . . . . Protection 11 | . . . . . 2 1 . . 2 4 2 Artifact . | . . . . . . . . . . . . Weapon 10 | . . 6 1 2 1 . . . . . . Energy Gun . | . . . . . . . . . . . . Energy Cannon 2 | . . 1 1 . . . . . . . . Ballistic Gun 3 | . . 3 . . . . . . . . . Ballistic Cannon . | . . . . . . . . . . . . Launcher . | . . . . . . . . . . . . Special Weapon 1 | . . . . . 1 . . . . . . Impact Weapon . | . . . . . . . . . . . . Slashing Weapon 4 | . . 2 . 2 . . . . . . . Piercing Weapon . | . . . . . . . . . . . . Special Melee Weapon . | . . . . . . . . . . . . Unidentified Prototypes 11 | . . . . 1 1 1 . . 4 . 4 Corrupted Parts 1 | . . . . . . . . . . . 1 System Corruption 4 | . . . . . . . . . . . 4 Parts Lost 96 | . . 5 . . 7 9 . . 25 42 8 Power 18 | . . 2 . . . 1 . . 6 6 3 Propulsion 25 | . . 2 . . . 3 . . 8 11 1 Utility 50 | . . . . . 5 5 . . 11 25 4 Weapon 3 | . . 1 . . 2 . . . . . . Highest Loss Streak 11 | . . 4 . . 7 6 . . 11 11 3 To Critical Strikes 1 | . . . . . . . . . 1 . . Average Backups 13 | . 7 9 16 23 8 4 4 4 4 5 13 Power 1 | . 1 . . 1 1 . . . . 1 3 Propulsion 2 | . 2 1 2 4 . . . . . 1 6 Utility 3 | . 3 3 4 7 3 1 1 1 1 . 2 Weapon 5 | . 1 4 8 9 2 2 3 3 3 2 2 Tool/Special . | . . . . . . . . . . . . Unused Backups 42 | . 7 9 . 6 8 1 . . . 3 8 Power 9 | . 1 1 . . 3 . . . . 2 2 Propulsion 11 | . 2 4 . . 1 1 . . . . 3 Utility 10 | . 2 3 . 1 3 . . . . . 1 Weapon 12 | . 2 1 . 5 1 . . . . 1 2 Tool/Special . | . . . . . . . . . . . . Average Slot Usage (%) 75 | . 87 91 87 66 72 90 74 80 77 70 80 Engine 7 | . 12 24 13 5 1 . . . . . . Core 3 | . . . 10 5 5 5 5 5 1 . . Reactor 2 | . . . . . 2 4 . . 6 7 7 Treads 8 | . . 9 25 17 . . . . . . . Leg 11 | . 25 11 . 4 20 19 15 15 14 19 24 Device 6 | . . . . . 10 24 25 30 16 13 25 Storage 7 | . 12 12 12 12 1 . . . . 1 7 Processor 7 | . . . . . 9 15 19 20 26 18 4 Hackware 1 | . . . . . 9 9 . . . . . Protection 4 | . 12 8 . . 5 7 5 5 6 4 5 Energy Cannon 5 | . . 4 18 11 . . . . . . . Ballistic Gun 1 | . 25 5 6 . . . . . . . . Slashing Weapon 7 | . . 13 . 7 5 5 5 5 4 4 4 Peak Build Rating 147 | . 7 18 22 30 84 96 79 79 121 143 147 Average Rating 52 | . 7 15 20 23 66 90 74 79 94 113 131 On Entrance 50 | 7 7 7 17 22 26 83 65 79 79 103 109 Naked Turns . | . . . . . . . . . . . . Heaviest Build 88 | 19 19 61 67 67 58 54 34 34 54 88 73 Greatest Support 176 | 20 20 40 40 42 76 90 74 65 106 176 172 Greatest Overweight (x) 15 | . . 8 1 15 3 . . . 1 8 . Average Overweight (x) . | . . . 1 1 . . . . . . . Largest Inventory Capacity 25 | . 10 25 25 25 25 5 5 5 5 15 15 Average Capacity 15 | . 10 14 25 25 9 5 5 5 5 7 15 Most Carried 25 | . 7 11 22 25 25 5 4 4 5 12 15 Average Carried 13 | . 7 9 17 24 9 4 4 4 4 5 13 Final Capacity 25 | 10 10 25 25 25 5 5 5 5 5 15 15 Final Carried 25 | 7 7 11 22 25 5 4 4 4 5 12 14 Class Distribution -------------------- 84% | Hacker-Mutant 15% | Scavenger-Mutant Dominant Class ---------------- Hacker-Mutant | -10/Materials Hacker-Mutant | -10/Subcaves Hacker-Mutant | -7/Recycling Hacker-Mutant | -7/Scraptown Hacker-Mutant | -5/Factory Hacker-Mutant | -4/Factory Hacker-Mutant | -4/Upper Caves Hacker-Mutant | -4/Upper Caves Hacker-Mutant | -3/Research Scavenger-Mutant | -2/Research Scavenger-Mutant | -2/Testing Resources | -11 -10 -10 -7 -7 -5 -4 -4 -4 -3 -2 -2 ----------- Run | Yrd Mat Sub Rec Scr Fac Fac Upp Upp Res Res Tes Matter Collected 2476 | 185 15 215 71 197 318 65 40 . 420 777 173 Remotely 40 | . . . . . . . . . . 40 . Salvage Created 9630 | . . 537 197 89 945 227 231 . 2019 4255 1130 Parts 483 | . . 45 6 4 48 8 3 . 97 224 48 Haulers Intercepted 1 | . . . . . 1 . . . . . . Recyclers Shooed 2 | . . . . . . . . . . 2 . Parts Field Recycled . | . . . . . . . . . . . . Retrieved Matter . | . . . . . . . . . . . . Parts Self-Destructed . | . . . . . . . . . . . . Prevented . | . . . . . . . . . . . . Kills | -11 -10 -10 -7 -7 -5 -4 -4 -4 -3 -2 -2 ------- Run | Yrd Mat Sub Rec Scr Fac Fac Upp Upp Res Res Tes Combat Hostiles Destroyed 125 | . . 16 2 2 16 3 . . 27 48 11 Melee 118 | . . 12 . 2 16 3 . . 27 47 11 Guns 4 | . . 4 . . . . . . . . . Cannons 2 | . . . 2 . . . . . . . . Classes Destroyed 19 | . . 3 2 2 5 2 . . 1 3 1 Worker 8 | . . . . . . . . . . 8 . Builder 2 | . . . . . . . . . . 1 1 Tunneler 1 | . . . . . . . . . . 1 . Hauler 1 | . . . . . 1 . . . . . . Recycler 7 | . . . 1 . . . . . 1 5 . Operator 1 | . . . . . . 1 . . . . . Turret 2 | . . 2 . . . . . . . . . Watcher 5 | . . . . . 1 . . . 3 . 1 Swarmer 22 | . . 7 . . 4 . . . 3 8 . Grunt 28 | . . . . . 6 . . . 9 9 4 Brawler 2 | . . . . . 1 . . . . . 1 Researcher 1 | . . . . . . . . . . . 1 Sentry 7 | . . . 2 . 1 . . . . 4 . Specialist 4 | . . . . . . . . . 2 . 2 Hunter 24 | . . . . . . 2 . . 6 12 4 Programmer 27 | . . . . . 4 1 . . 7 15 . Investigator 1 | . . . . . . . . . . . 1 Subdweller 9 | . . 9 . . . . . . . . . Explorer 1 | . . . . 1 . . . . . . . Guru 1 | . . . . 1 . . . . . . . Packrat 3 | . . . . . . . 3 . . . . Best Kill Streak 13 | . . 6 2 2 8 2 . . 7 13 8 Combat Bots Only 7 | . . 4 1 2 5 1 . . 7 5 6 Max Kills in Single Turn 2 | . . 1 1 2 2 1 1 . 1 2 2 Gunslinging . | . . . . . . . . . . . . Exploded . | . . . . . . . . . . . . Melee 2 | . . 1 . 2 2 1 . . 1 2 2 Uniques/NPCs Destroyed . | . . . . . . . . . . . . Combat | -11 -10 -10 -7 -7 -5 -4 -4 -4 -3 -2 -2 -------- Run | Yrd Mat Sub Rec Scr Fac Fac Upp Upp Res Res Tes Hostile Shots Fired 2226 | . . 115 81 5 99 139 . . 792 813 182 Missed 776 | . . 37 36 . 34 45 . . 346 233 45 Hits 1450 | . . 78 45 5 65 94 . . 446 580 137 Melee 21 | . . . . 2 5 . . . . . 14 Projectile 1429 | . . 78 45 3 60 94 . . 446 580 123 AOE 7 | . . 6 . . . . . . . . 1 Critical Strikes 62 | . . 2 . . 3 2 . . 17 27 11 Actively Blocked 38 | . . . . . . . . . . 27 11 Part Disruptions 5 | . . . . . . . . . 2 3 . Damage Taken 17677 | . . 828 239 105 960 1117 . . 4090 8048 2290 Core 2761 | . . 138 57 21 143 129 . . 809 1087 377 Absorbed by Shields 69 | . . . . . . . . . . . 69 Redirected to Shielding 242 | . . 22 . . . 32 . . 86 27 75 Ignored by Resistances 10596 | . . 512 143 61 533 653 . . 2437 4914 1343 Regen/Repaired (Parts) 23 | . . . . . 23 . . . . . . Core Remaining (%) 64 | 100 . . . 13 85 . . 88 37 . . Volleys Fired 30 | . . 17 11 . 2 . . . . . . Largest 2 | . . 2 2 . 1 . . . . . . Hottest 160 | . . 108 160 . . . . . . . . Shots Fired 55 | . . 33 20 . 2 . . . . . . Gun 36 | . . 30 6 . . . . . . . . Cannon 17 | . . 3 14 . . . . . . . . Launcher . | . . . . . . . . . . . . Special 2 | . . . . . 2 . . . . . . Kinetic 36 | . . 30 6 . . . . . . . . Thermal 17 | . . 3 14 . . . . . . . . Explosive . | . . . . . . . . . . . . Electromagnetic . | . . . . . . . . . . . . Robot Hit Streak 22 | . . 22 18 . 20 . . . . . . Robot Miss Streak 2 | . . 2 1 . . . . . . . . Penetration Max . | . . . . . . . . . . . . Secondary Targets 2 | . . 2 . . . . . . . . . Max Gunslinging Chain 1 | . . 1 . . . . . . . . . Shots Hit Robots 562 | . . 64 18 2 66 20 4 . 115 207 66 Core Hits 232 | . . 25 6 2 25 6 2 . 42 95 29 Critical Kills . | . . . . . . . . . . . . Critical Parts Destroyed . | . . . . . . . . . . . . Critical Strikes 17 | . . 1 . . 6 2 . . 6 2 . Sever 1 | . . 1 . . . . . . . . . Melee Attacks 580 | . . 63 . 2 72 25 4 . 129 215 70 Impact . | . . . . . . . . . . . . Slashing 580 | . . 63 . 2 72 25 4 . 129 215 70 Piercing . | . . . . . . . . . . . . Sneak Attacks 39 | . . . . . 2 1 4 . 6 22 4 Combat Hostiles 12 | . . . . . 1 . . . 4 5 2 Follow-up Attacks 13 | . . 3 . 1 1 . . . . 6 2 Damage Inflicted 24638 | . . 1484 512 57 2651 977 345 . 6005 9787 2820 Guns 380 | . . 288 92 . . . . . . . . Cannons 506 | . . 86 420 . . . . . . . . Explosions . | . . . . . . . . . . . . Melee 23752 | . . 1110 . 57 2651 977 345 . 6005 9787 2820 Ramming . | . . . . . . . . . . . . Kinetic 380 | . . 288 92 . . . . . . . . Thermal 506 | . . 86 420 . . . . . . . . Explosive . | . . . . . . . . . . . . Electromagnetic . | . . . . . . . . . . . . Impact . | . . . . . . . . . . . . Slashing 23752 | . . 1110 . 57 2651 977 345 . 6005 9787 2820 Piercing . | . . . . . . . . . . . . Highest Corruption 34 | . . . . . 6 3 3 3 5 18 34 Average Corruption 7 | . . . . . 4 2 3 3 3 8 20 Corruption Purged . | . . . . . . . . . . . . Corruption Blocked . | . . . . . . . . . . . . Effects 127 | . . . . . 21 6 6 . 20 48 26 Message Errors 35 | . . . . . 8 . 1 . 3 16 7 Matter Fused 35 | . . . . . 4 1 2 . 6 13 9 Heat Flow Errors 7 | . . . . . 2 1 . . 3 1 . Energy Discharges 8 | . . . . . 2 1 . . . 5 . Parts Rejected 2 | . . . . . . . . . 1 1 . Parts Fused 1 | . . . . . . . . . 1 . . Data Loss (minor) 27 | . . . . . 5 2 3 . 3 9 5 Data Loss (major) 8 | . . . . . . 1 . . 2 2 3 Alerts 2 | . . . . . . . . . 1 . 1 Misdirections 2 | . . . . . . . . . . 1 1 Overload Shots . | . . . . . . . . . . . . Overflow Damage 1611 | . . 29 . . 92 120 124 . 483 713 50 Projectiles . | . . . . . . . . . . . . Explosions . | . . . . . . . . . . . . Melee 1611 | . . 29 . . 92 120 124 . 483 713 50 Knockbacks . | . . . . . . . . . . . . Impact . | . . . . . . . . . . . . Kinetic . | . . . . . . . . . . . . Secondary . | . . . . . . . . . . . . Self-Inflicted Damage . | . . . . . . . . . . . . Shots . | . . . . . . . . . . . . Rammed . | . . . . . . . . . . . . Targets Rammed 1 | . . . . 1 . . . . . . . Kicked 1 | . . . . 1 . . . . . . . Crushed . | . . . . . . . . . . . . Highest Temperature 729 | . . 42 729 . 228 244 . . 239 143 . Average Temperature 216 | . . 24 348 . 117 135 . . 99 86 . Received Heat Transfer 2018 | . . 240 120 36 174 75 . . 363 675 335 Effects 13 | . . . 13 . . . . . . . . Shutdowns 4 | . . . 4 . . . . . . . . Energy Bleed 1 | . . . 1 . . . . . . . . Matter Decay 3 | . . . 3 . . . . . . . . Short Circuit 1 | . . . 1 . . . . . . . . Damage (minor) 2 | . . . 2 . . . . . . . . Damage (major) 1 | . . . 1 . . . . . . . . Damage (core) 1 | . . . 1 . . . . . . . . Siege Activations . | . . . . . . . . . . . . Martial Activations . | . . . . . . . . . . . . Shielding Activations . | . . . . . . . . . . . . Robots Disrupted 9 | . . . . . . . . . 2 5 2 Combat Hostiles 9 | . . . . . . . . . 2 5 2 Robots Corrupted . | . . . . . . . . . . . . Combat Hostiles . | . . . . . . . . . . . . Parts Fried 1 | . . . . . . . . . . . 1 Impact Corruptions . | . . . . . . . . . . . . Robots Melted . | . . . . . . . . . . . . Combat Hostiles . | . . . . . . . . . . . . Parts Melted 4 | . . . 3 . . . . . 1 . . Heat Transferred 629 | . . 111 518 . . . . . . . . Parts Sabotaged . | . . . . . . . . . . . . Parts Stolen . | . . . . . . . . . . . . Parts Stripped . | . . . . . . . . . . . . Power Chain Reactions . | . . . . . . . . . . . . Alert | -11 -10 -10 -7 -7 -5 -4 -4 -4 -3 -2 -2 ------- Run | Yrd Mat Sub Rec Scr Fac Fac Upp Upp Res Res Tes Maximum Alert Level . | . . . . . . . . . . . . Low Security (%) 100 | . 100 . 100 . 100 100 . . 100 100 100 Level 1 . | . . . . . . . . . . . . Level 2 . | . . . . . . . . . . . . Level 3 . | . . . . . . . . . . . . Level 4 . | . . . . . . . . . . . . Level 5 . | . . . . . . . . . . . . High Security . | . . . . . . . . . . . . Max Security . | . . . . . . . . . . . . Peak Influence 127 | . . . 42 . 127 30 . . 96 121 103 Initial 42 | . . . 42 . . 29 . . . . . Average 17 | . . . 4 . 16 4 . . 20 23 23 Influence Increases 3442 | . . 250 61 . 466 125 . . 818 1407 315 Destroy 0b10 Robot/C 2380 | . . 180 40 . 320 60 . . 540 980 260 Destroy 0b10 Robot/NC 130 | . . . 5 . 10 5 . . 20 80 10 Destroy Leader 424 | . . 10 . . 64 20 . . 96 212 22 Allied During Kill 2 | . . . . . . . . . . 2 . Successful Hack 120 | . . . 16 . 24 30 . . 14 36 . Disable Machine 16 | . . . . . 4 . . . . 4 8 Destroy Structure 70 | . . . . . 14 10 . . 28 18 . Partial Spotted 30 | . . . . . . . . . 30 . . Lose Combat Pursuer 270 | . . 60 . . 30 . . . 90 75 15 Influence Decreases 3442 | . . 130 181 . 384 202 5 . 818 1407 315 Entered New Map 134 | . . . 78 . . 53 3 . . . . Time Decay 2661 | . . 130 103 . 384 112 2 . 636 1049 245 Lost Part 567 | . . . . . . 37 . . 182 278 70 Lost Ally 40 | . . . . . . . . . . 40 . Purge Threat 40 | . . . . . . . . . . 40 . Squads Dispatched 26 | . . . . . 4 3 . . 5 10 4 Investigation 6 | . . . . . 1 1 . . 1 2 1 Extermination 14 | . . . . . 3 1 . . 3 6 1 Reinforcement 5 | . . . . . . 1 . . 1 2 1 Assault 1 | . . . . . . . . . . . 1 Garrison . | . . . . . . . . . . . . Intercept . | . . . . . . . . . . . . Searches Triggered . | . . . . . . . . . . . . Construction Impeded . | . . . . . . . . . . . . Haulers Reinforced . | . . . . . . . . . . . . Active Scanning Responses . | . . . . . . . . . . . . Cargo Convoy Interrupts . | . . . . . . . . . . . . Stealth | -11 -10 -10 -7 -7 -5 -4 -4 -4 -3 -2 -2 --------- Run | Yrd Mat Sub Rec Scr Fac Fac Upp Upp Res Res Tes Distress Signals 9 | . . . . . 1 . . . 3 5 . Communications Jammed 50 | . . . . . . . . . 47 2 1 Distress Signals 49 | . . . . . . . . . 47 1 1 Times Spotted 197 | . . 25 2 9 19 6 . . 41 70 25 Peak Tracking Total 9 | . . 6 1 6 4 3 . . 7 7 9 Tactical Retreats 13 | . . 2 . . 2 . . . 4 4 1 Traps | -11 -10 -10 -7 -7 -5 -4 -4 -4 -3 -2 -2 ------- Run | Yrd Mat Sub Rec Scr Fac Fac Upp Upp Res Res Tes Traps Triggered 9 | . . . . . 2 . . . 2 4 1 Indirectly . | . . . . . . . . . . . . Trap Hack Attempts . | . . . . . . . . . . . . Triggered . | . . . . . . . . . . . . Disarmed . | . . . . . . . . . . . . Reprogrammed . | . . . . . . . . . . . . Reused . | . . . . . . . . . . . . Traps Extracted . | . . . . . . . . . . . . Installed . | . . . . . . . . . . . . Triggered . | . . . . . . . . . . . . Machines | -11 -10 -10 -7 -7 -5 -4 -4 -4 -3 -2 -2 ---------- Run | Yrd Mat Sub Rec Scr Fac Fac Upp Upp Res Res Tes Machines Disabled 6 | . . 2 . . 1 . . . . 1 2 Max in Single Turn 1 | . . 1 . . 1 . . . . 1 1 Garrison Access 2 | . . . . . . . . . 1 1 . Machines Repaired . | . . . . . . . . . . . . Machines Dismantled . | . . . . . . . . . . . . Machines Sabotaged . | . . . . . . . . . . . . Overloaded Fab Kills . | . . . . . . . . . . . . Hacking | -11 -10 -10 -7 -7 -5 -4 -4 -4 -3 -2 -2 --------- Run | Yrd Mat Sub Rec Scr Fac Fac Upp Upp Res Res Tes Machines Accessed 28 | . . 1 3 6 5 2 . . 4 6 1 Terminals 16 | . . . 3 . 4 2 . . 2 4 1 Fabricators 2 | . . . . . 1 . . . . 1 . Repair Stations 1 | . . . . . . . . . 1 . . Recycling Units . | . . . . . . . . . . . . Scanalyzers . | . . . . . . . . . . . . Garrison Access 2 | . . . . . . . . . 1 1 . Total Hacks 76 | . . 4 6 33 9 5 . . 6 11 2 Successful 57 | . . 4 4 33 7 2 . . 2 5 . Failed 19 | . . . 2 . 2 3 . . 4 6 2 Catastrophic 3 | . . . . . . 1 . . 1 1 . Database Lockouts . | . . . . . . . . . . . . Manual 21 | . . . 4 1 4 4 . . . 6 2 Terminals 31 | . . . 6 . 8 5 . . 3 7 2 Fabricators 4 | . . . . . 1 . . . . 3 . Repair Stations 1 | . . . . . . . . . 1 . . Recycling Units . | . . . . . . . . . . . . Scanalyzers . | . . . . . . . . . . . . Garrison Access 3 | . . . . . . . . . 2 1 . Terminal Hacks 51 | . . 4 4 33 6 1 . . 1 2 . Record 30 | . . 4 . 26 . . . . . . . Robot Analysis 8 | . . . 1 6 1 . . . . . . Open Door 1 | . . . . 1 . . . . . . . Level Access Points 3 | . . . . . 1 . . . 1 1 . Machine Index 1 | . . . 1 . . . . . . . . Unreport Threat 1 | . . . . . . . . . . 1 . Hauler Manifests 1 | . . . 1 . . . . . . . . Registered Components 1 | . . . . . 1 . . . . . . Zone Layout 5 | . . . 1 . 3 1 . . . . . Fabricator Hacks 1 | . . . . . 1 . . . . . . Network Status 1 | . . . . . 1 . . . . . . Repair Station Hacks . | . . . . . . . . . . . . Recycling Unit Hacks . | . . . . . . . . . . . . Scanalyzer . | . . . . . . . . . . . . Garrison Access Hacks 2 | . . . . . . . . . 1 1 . Seal Access 2 | . . . . . . . . . 1 1 . Unauthorized Hacks 3 | . . . . . . 1 . . . 2 . Terminals 3 | . . . . . . 1 . . . 2 . Botnet 3 | . . . . . . 1 . . . 2 . Fabricators . | . . . . . . . . . . . . Repair Stations . | . . . . . . . . . . . . Recycling Units . | . . . . . . . . . . . . Scanalyzers . | . . . . . . . . . . . . Garrison Access . | . . . . . . . . . . . . Data Cores Recovered . | . . . . . . . . . . . . Used . | . . . . . . . . . . . . Hacking Detections 18 | . . . 3 . 4 2 . . 4 4 1 Full Trace Events 5 | . . . . . 1 1 . . 1 1 1 Feedback Events 2 | . . . . . . 2 . . . . . Corruption 1 | . . . . . . 1 . . . . . Hackware Fried 1 | . . . . . . 1 . . . . . Feedback Blocked . | . . . . . . . . . . . . Robot Schematics Acquired 1 | . . . . . . . . . . . 1 Robots Built . | . . . . . . . . . . . . Authchips . | . . . . . . . . . . . . Time . | . . . . . . . . . . . . Total Robot Build Rating . | . . . . . . . . . . . . Part Schematics Acquired 3 | . . . . . . . . . . . 3 Parts Built . | . . . . . . . . . . . . Authchips . | . . . . . . . . . . . . Time . | . . . . . . . . . . . . Total Part Build Rating . | . . . . . . . . . . . . Parts Repaired . | . . . . . . . . . . . . Time . | . . . . . . . . . . . . Parts Recycled . | . . . . . . . . . . . . Recycled Matter . | . . . . . . . . . . . . Retrieved Matter . | . . . . . . . . . . . . Retrieved Components . | . . . . . . . . . . . . Parts Scanalyzed . | . . . . . . . . . . . . Part Schematics Acquired . | . . . . . . . . . . . . Parts Damaged . | . . . . . . . . . . . . Bothacking | -11 -10 -10 -7 -7 -5 -4 -4 -4 -3 -2 -2 ------------ Run | Yrd Mat Sub Rec Scr Fac Fac Upp Upp Res Res Tes Used RIF Installer . | . . . . . . . . . . . . Robots Hacked . | . . . . . . . . . . . . Non-combat . | . . . . . . . . . . . . Combat . | . . . . . . . . . . . . Robot Hacks Applied . | . . . . . . . . . . . . Relay Couplers Released 4 | . . . . . . . . . . 4 . Programmers 4 | . . . . . . . . . . 4 . Fabnet Peak Effective % . | . . . . . . . . . . . . Robots Rewired 3 | . . . . . . . . . . 3 . Allies Hacked 1 | . . . . . . . . . . 1 . Hacks Repelled . | . . . . . . . . . . . . Allies | -11 -10 -10 -7 -7 -5 -4 -4 -4 -3 -2 -2 -------- Run | Yrd Mat Sub Rec Scr Fac Fac Upp Upp Res Res Tes Total Allies 3 | . . . . . . . . . . 3 . Largest Group 1 | . . . . . . . . . . 1 . Highest-Rated Group 69 | . . . . . . . . . . 69 . Highest-Rated Ally 69 | . . . . . . . . . . 69 . Total Orders . | . . . . . . . . . . . . Ally Attacks 11 | . . . . . . . . . . 11 . Total Damage 509 | . . . . . . . . . . 509 . Kills 2 | . . . . . . . . . . 2 . Allies Corrupted . | . . . . . . . . . . . . Allies Melted . | . . . . . . . . . . . . Intel | -11 -10 -10 -7 -7 -5 -4 -4 -4 -3 -2 -2 ------- Run | Yrd Mat Sub Rec Scr Fac Fac Upp Upp Res Res Tes Active Infowar (turns) 4477 | . . . . . 485 569 455 26 725 1657 560 Sensors 2260 | . . . . . 485 569 455 26 725 . . Terrain 1238 | . . . . . . . . . . 1238 . Seismic 428 | . . . . . . . . . . . 428 Jamming 1070 | . . . . . . . . . 167 419 484 Robot Analysis Total 8 | . . . 1 6 1 . . . . . . Derelict Logs Recovered 2 | . . 1 . . . . 1 . . . . Drone Launches . | . . . . . . . . . . . . Drone Recoveries . | . . . . . . . . . . . . Exploration | -11 -10 -10 -7 -7 -5 -4 -4 -4 -3 -2 -2 ------------- Run | Yrd Mat Sub Rec Scr Fac Fac Upp Upp Res Res Tes Turns Passed 15626 | . 87 3010 595 5403 1163 569 455 26 1369 2389 560 Spaces Moved 7431 | 1 73 1355 212 2158 604 309 366 22 756 1280 295 Core 51 | . . 4 . 47 . . . . . . . Treads 2224 | . . 514 212 1498 . . . . . . . Legs 4869 | 1 73 722 . 446 604 309 366 22 756 1275 295 Wheels 287 | . . 115 . 167 . . . . . 5 . Hover . | . . . . . . . . . . . . Flight . | . . . . . . . . . . . . Fastest Speed 90 | 120 120 110 260 90 106 120 120 120 105 110 118 Average Speed 177 | 120 120 206 260 248 132 120 120 120 117 119 119 Slowest Speed 800 | 120 120 450 260 800 330 120 120 120 190 200 120 Overloaded Moves . | . . . . . . . . . . . . Propulsion Burnouts . | . . . . . . . . . . . . Robots Hopped . | . . . . . . . . . . . . Potential Cave-ins 3 | . . 1 . . . . . . . 2 . Cave-ins Triggered . | . . . . . . . . . . . . Exploration Rate (%) 32 | 2 10 62 51 92 14 6 64 5 22 30 34 Regions Visited 11 Branch Regions 6 Pre-discovered Areas . | . . . . . . . . . . . . Known Exits Taken 11 | 1 1 1 1 1 1 1 1 1 1 1 . Unknown Exits Taken . | . . . . . . . . . . . . Scrap Searched 17 | . . 11 . 4 . . 2 . . . . Spaces Dug 33 | . . 1 . . 7 5 . . 14 6 . Terrain Destroyed 33 | . . 1 . . 7 5 . . 14 6 . Melee 33 | . . 1 . . 7 5 . . 14 6 . Projectile . | . . . . . . . . . . . . AOE . | . . . . . . . . . . . . Terrain Rammed . | . . . . . . . . . . . . Walls Destroyed . | . . . . . . . . . . . . Machines Disabled . | . . . . . . . . . . . . Actions | -11 -10 -10 -7 -7 -5 -4 -4 -4 -3 -2 -2 --------- Run | Yrd Mat Sub Rec Scr Fac Fac Upp Upp Res Res Tes Total 9132 | . 72 1476 237 2203 901 500 378 21 1100 1837 407 Wait 736 | . . 1 3 . 170 151 6 . 153 232 20 Move 7421 | . 72 1354 211 2158 603 308 365 21 755 1279 295 Hop . | . . . . . . . . . . . . Pick Up 59 | . . 17 10 11 7 2 . . . 8 4 Fast Attach 133 | . . 8 . 4 19 5 3 . 37 50 7 Attach 17 | . . 1 . 4 6 1 . . 1 1 3 Detach 15 | . . . . 6 4 . . . 1 3 1 Swap 46 | . . 7 2 2 5 3 . . 11 14 2 Drop 86 | . . 13 . 17 14 5 . . 13 22 2 Fire 30 | . . 17 11 . 2 . . . . . . Melee 565 | . . 58 . 1 71 25 4 . 129 209 68 Ram . | . . . . . . . . . . . . Kick . | . . . . . . . . . . . . Crush . | . . . . . . . . . . . . Escape Stasis 3 | . . . . . . . . . . . 3 Rewire 21 | . . . . . . . . . . 19 2 Trap . | . . . . . . . . . . . . Miscellaneous . | . . . . . . . . . . . . Route ------- -11/Scrapyard -10/Materials -10/Subcaves (discovered 3 exits: *Mat x2 / *Rec) -7/Recycling -7/Scraptown (discovered 2 exits: *Fac x2) -5/Factory (discovered 5 exits: *Fac x4 / *Upp) -4/Factory -4/Upper Caves -4/Upper Caves -3/Research (discovered 3 exits: *Res x3) -2/Research (discovered 4 exits: Acc x3 / *Tes) -2/Testing History --------- Turn | Location | Event 1 | -11/Scrapyard | Identified exit to Materials 1 | -11/Scrapyard | Discovered exit to Materials (range 0) 1 | -11/Scrapyard | Entered Materials 1 | -10/Materials | Evolved 1 slot: Power x1 82 | -10/Materials | Identified exit to Subcaves 82 | -10/Materials | Discovered exit to Subcaves (range 7) 88 | -10/Materials | Entered Subcaves 93 | -10/Subcaves | Learned Materials security intel 275 | -10/Subcaves | Visited Clippyterm 281 | -10/Subcaves | Learned Research security intel 315 | -10/Subcaves | Build established: Hacker-Mutant 376 | -10/Subcaves | Disturbed a concealed Subdweller 487 | -10/Subcaves | A swath of the cavern ceiling suddenly collapsed 647 | -10/Subcaves | Disturbed a concealed Subdweller 833 | -10/Subcaves | Identified exit to Materials 833 | -10/Subcaves | Discovered exit to Materials (range 11) 1177 | -10/Subcaves | Discovered exit to Materials (range 3) 1702 | -10/Subcaves | Shifting Twisted Machinery released Sub. Monowheel 1710 | -10/Subcaves | Shifting Twisted Machinery released Sub. Beam Cannon 1800 | -10/Subcaves | Lost 4 parts (2p1n1w) 1817 | -10/Subcaves | Core integrity fell below 50% 3005 | -10/Subcaves | Identified exit to Recycling 3005 | -10/Subcaves | Discovered exit to Recycling (range 8) 3098 | -10/Subcaves | Entered Recycling 3618 | -7/Recycling | Scanned before Scraplab entrance 3657 | -7/Recycling | Entered Scraplab 3686 | -7/Recycling | Identified exit to Scraptown 3686 | -7/Recycling | Discovered exit to Scraptown (range 3) 3693 | -7/Recycling | Entered Scraptown 4214 | -7/Scraptown | Identified exit to Factory 4214 | -7/Scraptown | Discovered exit to Factory (range 5) 4590 | -7/Scraptown | Visited Symbiants 4777 | -7/Scraptown | Visited Cyclists 4871 | -7/Scraptown | Visited UFD Registry 4871 | -7/Scraptown | Registered with UFD as "Wrenchsourcer" 4949 | -7/Scraptown | Entered Cyclist Reading Room 5170 | -7/Scraptown | Visited Modified Component R&D 5318 | -7/Scraptown | Visited Scrapoid Research Area 5404 | -7/Scraptown | Visited Science Guys 5435 | -7/Scraptown | Visited Junk Repository 5942 | -7/Scraptown | Visited Analyses Database 6051 | -7/Scraptown | Visited Sword Containment 6185 | -7/Scraptown | Visited Botcube Research 6279 | -7/Scraptown | Visited Research Penetration Think Tank 8470 | -7/Scraptown | Visited SPCMW 8808 | -7/Scraptown | Met Optimus 8808 | -7/Scraptown | Accepted into 0bPrime 8995 | -7/Scraptown | Found Scrap Suit 9079 | -7/Scraptown | Civil war broke out across Scraptown 9080 | -7/Scraptown | Discovered exit to Factory (range 6) 9091 | -7/Scraptown | Core integrity fell below 20% 9096 | -7/Scraptown | Entered Factory 9096 | -5/Factory | Evolved 10 slots: Propulsion x2, Utility x8 9409 | -5/Factory | Lost 7 parts (5u2w) 9482 | -5/Factory | Identified exit to Upper Caves 9482 | -5/Factory | Discovered exit to Upper Caves (range 13) 9535 | -5/Factory | Identified exit to Factory 10259 | -5/Factory | Entered another Factory area 10259 | -4/Factory | Evolved 2 slots: Utility x2 10673 | -4/Factory | Spotted B-86 Titan 10802 | -4/Factory | Lost 6 parts (1p3n2u) 10821 | -4/Factory | Identified exit to Upper Caves 10821 | -4/Factory | Discovered exit to Upper Caves (range 9) 10821 | -4/Factory | Hacking Suite fried by hacking feedback 10828 | -4/Factory | Entered Upper Caves 10937 | -4/Upper Caves | Learned Research terminal intel 11242 | -4/Upper Caves | Identified exit to Upper Caves 11242 | -4/Upper Caves | Discovered exit to Upper Caves (range 9) 11283 | -4/Upper Caves | Entered another Upper Caves area 11301 | -4/Upper Caves | Identified exit to Research 11301 | -4/Upper Caves | Discovered exit to Research (range 5) 11309 | -4/Upper Caves | Entered Research 11309 | -3/Research | Evolved 2 slots: Utility x2 11311 | -3/Research | Loaded intel: 23 terminal locations 11452 | -3/Research | Identified exit to Research 11833 | -3/Research | Lost 4 parts (4u) 11960 | -3/Research | Found Prototype Device 11960 | -3/Research | Identified Adv. Kinecellerator 12142 | -3/Research | Destroyed 7 combat bots 12145 | -3/Research | Lost 11 parts (2p5n4u) 12327 | -3/Research | Core integrity fell below 50% 12378 | -3/Research | Lost 6 parts (2p3n1u) 12542 | -3/Research | Spotted B-86 Titan 12678 | -3/Research | Entered another Research area 12678 | -2/Research | Evolved 2 slots: Propulsion x2 12691 | -2/Research | Build established: Scavenger-Mutant 13039 | -2/Research | Build established: Hacker-Mutant 13698 | -2/Research | Build established: Scavenger-Mutant 13857 | -2/Research | Lost 4 parts (1n3u) 14006 | -2/Research | Lost 11 parts (2p4n5u) 14126 | -2/Research | Identified exit to Access 14415 | -2/Research | System corruption reached 10% 14423 | -2/Research | Core integrity fell below 50% 14458 | -2/Research | Lost 10 parts (1p4n5u) 14642 | -2/Research | Found Adv. Powered Armor 14644 | -2/Research | Found Adv. Powered Armor 14688 | -2/Research | Build established: Hacker-Mutant 14986 | -2/Research | Lost 3 parts (1p2u) 15047 | -2/Research | Build established: Scavenger-Mutant 15061 | -2/Research | Identified exit to Testing 15061 | -2/Research | Discovered exit to Testing (range 6) 15067 | -2/Research | Entered Testing 15311 | -2/Testing | Core integrity fell below 20% 15326 | -2/Testing | Scanned by Researcher 15363 | -2/Testing | Protovariant out of control (PX-EZSDL8TRX9) 15388 | -2/Testing | Found Prototype Device 15388 | -2/Testing | Identified 2N-1CE's Frost Array 15436 | -2/Testing | Spotted Investigator 15451 | -2/Testing | Destroyed Investigator 15593 | -2/Testing | System corruption reached 30% 15623 | -2/Testing | Lost 3 parts (1p2u) 15627 | -2/Testing | Destroyed by G-73 Enforcer with Phase Gun Last Messages --------------- 15589_ Knocked back. 15592_ Q432-a follow-up attacks with Prototype Impact Weapon. 15592_ Prc. Matter Filter destroyed. 15592_ System corrupted by crushing effect (+3). 15592_ Knocked back. 15597_ System corrupted: Matter fused (-7). 15608_ Q432-a follow-up attacks with Prototype Impact Weapon. 15612_ System corrupted: Substantial component data lost. 15613_ Q432-a follow-up attacks with Prototype Impact Weapon. 15618_ Knocked back. 15623_ Q432-a follow-up attacks with Prototype Impact Weapon. 15623_ Myomer Leg destroyed. 15623_ System corrupted by crushing effect (+3). 15623_ Knocked back. [Achievement: Overachiever] Map ----- +----------------------------------------------------+ | !==#??????????# # """ #???????? | | !==#??????????######## ######## """"" #???????? | | #?????????????????# #????????"""""?????????? | | #??????????######## #????????"""""?????????? | | #??????????# ^ #?????????"""??????????? | | ####??????????+ #?????????""???????????? | | ??????????????# #??????????????????????? | | ??????????????# #??????????????????????? | | ???????????#######+### #??????????????????????? | | ???????????# ??# #??????????????????????? | | ???????????# ?# #??????????????????????? | | ???????????# ?# #??????????????????????? | | ???????????# # #??????????????????????? | | ???????????# # #??????????????????????? | | ???????????# + #??????????????????????? | | ???????????# # #??????????????????????? | | ???????????# # #??????????????????????? | | ???????????########### #??????????????????????? | | ??????????????????# #??????????????????????? | | ??????????????????# #??????????????????????? | | ??????????????????# #??????????????????????? | | ??????????????????# Q #??????????????????????? | | ??????????????????####x#####?????????????????????? | | ??????????????????# g #?????????????????????? | | ??????????????????# gQ #?????????????????????? | | ??????????????????# @ #?????????????????????? | | ??????????????????# #?????????????????????? | | ??????????????????# """ #?????????????????????? | | ??????????????????# """" #?????????????????????? | | ??????????????????# """" #?????????????????????? | | ??????????????????# """ #?????????????????????? | | ??????????????????# #?????????????????????? | | ??????????????????####??####?????????????????????? | | ?????????????????????????????????????????????????? | | ?????????????????????????????????????????????????? | | ?????????????????????????????????????????????????? | | ?????????????????????????????????????????????????? | | | | | | | | | | | | | | | | | | | | | | | | | | | +----------------------------------------------------+ Best States ------------- Heat Dissipation 149 Energy Generation 48 Energy Capacity 730 Matter Stores 400 Matter Capacity 400 Sight Range 16 Robot Scan Range 16 Terrain Scan Range 20 Terrain Scan Density 10 Jamming Range 16 Power Amplification 20 Additional Mass Support 9 Armor Coverage 825 Resistance: KI 35 Resistance: TH 65 Resistance: EX 35 Resistance: EM 35 Resistance: I 35 Resistance: S 35 Resistance: P 35 Utility Shielding 33 Weapon Shielding 90 Point Defense Rating 240 Melee Speed Boost 50 Phase Shifting 15 Evasion (%) 70 Melee Accuracy 48 Core Analysis 9 Recoil Reduction 2 Matter Filtering 50 Offensive Hacking 54 Item Schematics ----------------- Imp. Q-thruster | -2/Testing | Archive Cld. Phase Cannon | -2/Testing | Archive Lgt. Antimatter Cannon | -2/Testing | Archive Robot Schematics ------------------ K-01 Serf | -2/Testing | Archive Fabricated ------------ Nothing Repaired ---------- Nothing Alien Tech Used ----------------- None Achievements -------------- Ambidextrous Melee Specialist Overachiever Challenges ------------ None Game ------ Seed TransmissionGravityDirector Manual? 0 Play Time 01:48:27 Cumulative 118.9 hours Start 2025.09.01 @ 21:42:49 End 2025.09.02 @ 03:24:15 Sessions 3 Manual Loads 0 Difficulty Explorer Special Mode None Game No. 152 Rogue 64 Adventurer 59 Explorer 29 Win Type - Total 15 Types 13/0/2/0/0/0/0/0/0/0 Lore% 39 Gallery% 60 Achievement% 50 Wizard Run 0 Options --------- Layout 2 ASCII 0 Keyboard 1 Movement Arrows Keybinds 1 Fullscreen 2 Font 32/SmallcapsGlow Map View 50x44 Zoom Use 0% Tactical HUD 1 Map Filters NONE Filters NONE Steam 1 RUN: 9287ddfd-7ea7-418b-998e-8ab030e0c988